[Event "Hungarian Championship Men 2022"]
[Site "Budapest"]
[Date "2022.12.13"]
[Round "9.3"]
[White "Horvath, Csaba"]
[Black "Papp, Gabor"]
[Result "1-0"]
[ECO "E15"]
[WhiteElo "2502"]
[BlackElo "2564"]
[Annotator "TA"]
[PlyCount "75"]
[EventDate "2022.12.03"]
[EventType "tourn"]
[EventCountry "HUN"]
[SourceTitle "playchess.com"]
[Source "ChessBase"]
[SourceQuality "1"]
[TimeControl "40/5400+30:1800+30"]

{[%evp 19,75,6,14,8,11,15,9,17,20,23,34,11,15,22,19,-3,-12,-12,10,0,17,10,29,18,44,34,68,72,62,44,53,50,62,59,74,56,72,73,92,95,173,119,225,228,251,233,272,277,279,263,251,225,249,270,795,787,861,823]} 1. d4 {[%emt 0:00:34]} Nf6 {[%emt 0:00:36]} 2. c4 {[%emt 0:00:11]} e6 {[%emt 0:00:12]} 3. Nf3 {[%emt 0:00:17]} b6 {[%emt 0:00:05]} 4. g3 {[%emt 0:00:25]} Ba6 {[%emt 0:00:05]} 5. b3 {[%emt 0:00:33]} Bb4+ {[%emt 0:00:06]} 6. Bd2 {[%emt 0:00:29]} Be7 {[%emt 0:00:06]} 7. Nc3 {[%emt 0:00:14]} d5 {[%emt 0:00:32]} 8. cxd5 {[%emt 0:00:30]} exd5 {[%emt 0:00:04]} 9. Bg2 {[%emt 0:00:15]} O-O {[%emt 0:00:07]} 10. O-O {[%emt 0:00:10]} Re8 {[%emt 0:00:13]} 11. Ne5 {[%emt 0:07:03][%cal Ob3b4] 11.Rc1 is more fashionable. E15: Queen's Indian: 4 g3 sidelines, 4 g3 Ba6 and 4 g3 Bb7 early deviations.} Bb7 {[%emt 0:00:34]} 12. Rc1 {[%emt 0:00:29]} Nbd7 {[%emt 0:00:20]} 13. Rc2 {[%emt 0:01:20] The position is equal.} a6 {[%emt 0:23:46]} 14. Bc1 {[%emt 0:19:44]} h6 {[%emt 0:15:04]} 15. Bb2 {[%emt 0:06:32]} Bd6 {[%emt 0:04:56]} 16. Nc4 {[%emt 0:01:02]} Bf8 {[%emt 0:00:04] [#]} 17. Ne3 $5 $146 {[%emt 0:01:32][%mdl 8] New and interesting.} ({Predecessor:} 17. Qc1 c6 18. Nd2 c5 19. dxc5 Nxc5 20. Nf3 d4 21. Na4 Nxa4 22. bxa4 Bc5 23. Rd1 {0-1 (68) Panesar,V (2379)-Aditya,M (2487) Dhaka 2022}) 17... c6 {[%emt 0:00:25]} 18. Nf5 {[%emt 0:03:50]} g6 {[%emt 0:01:50]} 19. Nh4 {[%emt 0:01:22]} Bg7 {[%emt 0:04:14]} 20. Nf3 {[%emt 0:03:19]} a5 {[%emt 0:08:08]} 21. Qc1 {[%emt 0:02:15]} Ba6 {[%emt 0:05:23]} 22. Rd1 {[%emt 0:00:11]} Qe7 {[%emt 0:08:36]} 23. e3 {[%emt 0:03:13]} Qe6 {[%emt 0:02:08]} 24. Ne2 {[%emt 0:04:13]} Bxe2 {[%emt 0:00:22]} 25. Rxe2 {[%emt 0:00:11]} a4 {[%emt 0:03:15]} 26. Rc2 {[%emt 0:07:31]} Rec8 {[%emt 0:00:04]} 27. Ne1 {[%emt 0:11:36]} axb3 {[%emt 0:00:19]} 28. axb3 {[%emt 0:00:02]} Bf8 {[%emt 0:02:03]} 29. Nd3 {[%emt 0:00:14]} Ne4 {[%emt 0:02:34]} (29... g5 $16) 30. Nf4 {[%emt 0:06:28]} ({White should play} 30. f3 $18 Nd6 31. e4 (31. Rxc6 Rxc6 32. Qxc6 Rc8 $19)) 30... Qd6 {[%emt 0:00:35]} (30... Qe8 $16 {might work better.}) 31. f3 $18 {[%emt 0:03:13][%cal Bf2f3,Bf3e4,Be4e5][%mdl 32]} Ng5 {[%emt 0:05:29] [#]} 32. e4 $1 {[%emt 0:00:11][%cal Of4d5]} dxe4 {[%emt 0:05:46]} 33. fxe4 Qb4 34. Rd3 {[%emt 0:07:09]} ({Don't take} 34. Rxc6 $6 Qxb3 35. Rd3 (35. Rxc8 Rxc8 36. Qxc8 Qxd1+ 37. Bf1 Nc5 $17) 35... Rxc6 36. Qxc6 (36. Rxb3 Rxc1+ 37. Bxc1 Ra1 $11) 36... Qa2 $16) (34. e5 Qxb3 35. Rd3 (35. Bxc6 Rxc6 36. Rxc6 Nc5 $14) (35. Rxc6 Nf3+ 36. Bxf3 Qxf3 $11) 35... Qb5 $18) 34... Ra2 {[%emt 0:04:51]} 35. e5 {[%emt 0:03:06]} (35. Rxc6 $2 {loses.} Rxc6 36. Qd2 Nf6 $19) 35... c5 {[%emt 0:00:02]} 36. h4 {[%emt 0:01:59]} Qb5 $2 {[%emt 0:01:40]} (36... Ne6 37. Nxe6 fxe6) 37. hxg5 {[%emt 0:03:54]} hxg5 {[%emt 0:00:04] [#]} 38. Bd5 $1 {[%emt 0:00:09] Weighted Error Value: White=0.05 (flawless) /Black=0.16 (very precise)} 1-0

[Event "Hungarian Championship Men 2022"]
[Site "Budapest"]
[Date "2022.12.13"]
[Round "9.4"]
[White "Horvath, Adam"]
[Black "Fodor, Tamas Jr."]
[Result "0-1"]
[ECO "C77"]
[WhiteElo "2501"]
[BlackElo "2517"]
[Annotator "TA"]
[PlyCount "82"]
[EventDate "2022.12.03"]
[EventType "tourn"]
[EventCountry "HUN"]
[SourceTitle "playchess.com"]
[Source "ChessBase"]
[SourceQuality "1"]
[TimeControl "40/5400+30:1800+30"]

{[%evp 11,82,5,15,0,5,0,0,6,4,20,62,41,51,44,55,49,64,45,66,67,68,12,19,10,10,9,13,10,10,6,58,37,43,43,59,56,77,0,-4,-51,-71,-66,-59,-54,0,0,0,0,0,-8,0,-175,-177,-176,-168,-536,-495,-576,-587,-579,-542,-454,-355,-559,-559,-559,-559,-1058,-683,-29972,-1822,-1290,-1169]} 1. e4 {[%emt 0:10:53]} e5 {[%emt 0:00:45]} 2. Nf3 {[%emt 0:00:09]} Nc6 {[%emt 0:00:06]} 3. Bb5 {[%emt 0:00:10]} a6 {[%emt 0:00:35]} 4. Ba4 {[%emt 0:00:06]} Nf6 {[%emt 0:00:32]} 5. Nc3 {[%emt 0:00:15]} b5 {[%emt 0:04:04]} 6. Bb3 {[%emt 0:01:09]} Be7 {[%emt 0:01:09]} 7. a4 {[%emt 0:01:32] C77: Ruy Lopez: 3...a6 4 Ba4 Nf6, unusual lines.} b4 {[%emt 0:03:59]} 8. Nd5 {[%emt 0:00:04]} d6 {[%emt 0:01:04]} 9. d4 {[%emt 0:00:29] The position is equal.} Bg4 {[%emt 0:08:25]} (9... Nxe4 10. Qd3 f5 11. O-O $16 (11. Qc4 Na5 $16)) (9... Na5 {simplifies} 10. Nxf6+ Bxf6 11. dxe5 Nxb3 12. cxb3 Bxe5 13. Nxe5 dxe5 14. Qc2 O-O) 10. dxe5 {[%emt 0:01:04]} dxe5 {[%emt 0:03:52]} 11. Be3 {[%emt 0:00:45]} Na5 {[%emt 0:06:42]} (11... Nxe4 12. Nxe7 Qxd1+ 13. Rxd1 $16) 12. Nxf6+ {[%emt 0:03:00]} Bxf6 {[%emt 0:00:17]} 13. Bd5 {[%emt 0:00:09]} c6 {[%emt 0:01:48]} 14. Ba2 {[%emt 0:00:04]} Qe7 {[%emt 0:04:24] [#]} 15. Bb6 $146 {[%emt 0:15:26]} ({Predecessor:} 15. O-O O-O 16. h3 Bd7 17. Qe2 Rfb8 18. Nd2 Nb7 19. Bc4 a5 20. Nb3 Qd8 21. Rfd1 {1-0 (43) Horvath,A (2484)-Kushagra,M (2150) Chennai 2018}) 15... Nb7 {[%emt 0:00:56][%cal Ob4b3] [#] Strongly threatening ...b3!} 16. O-O {[%emt 0:00:47]} (16. a5 $14) 16... a5 $1 $11 {[%emt 0:01:12]} 17. h3 {[%emt 0:23:58]} Bh5 {[%emt 0:03:56]} 18. Qd3 {[%emt 0:12:50]} O-O {[%emt 0:02:07]} 19. Rfd1 {[%emt 0:08:44]} Nc5 {[%emt 0:02:41] Against g4} 20. Qe3 {[%emt 0:04:08]} Ne6 {[%emt 0:03:33]} ({Better is} 20... Nxa4 $11 21. Bxf7+ Qxf7 22. Rxa4 Bh4) 21. Bxe6 {[%emt 0:02:58]} Qxe6 {[%emt 0:00:10]} 22. Rd3 {[%emt 0:00:44]} h6 {[%emt 0:02:03]} 23. b3 {[%emt 0:02:27]} Be7 {[%emt 0:03:08]} 24. Rad1 {[%emt 0:01:44]} (24. Nd2 $16) 24... c5 $1 {[%emt 0:12:02]} 25. Bc7 {[%emt 0:00:49]} (25. Rd7 $11 {was preferrable.}) 25... Rfc8 $15 {[%emt 0:02:52] [#] aiming for ...Bxf3.} 26. Bd6 {[%emt 0:00:08]} (26. Bxe5 $2 Bxf3 27. Qxf3 Qxe5 $19) 26... c4 {[%emt 0:01:00]} 27. bxc4 {[%emt 0:04:41]} Rxc4 {[%emt 0:00:22]} ({Black should play} 27... Bxd6 $15 28. Rxd6 Qxc4) 28. Bxe7 $11 {[%emt 0:03:43]} Qxe7 {[%emt 0:00:06]} 29. Rd7 {[%emt 0:00:22]} Qe8 $36 {[%emt 0:06:06][%mdl 2048] Black has good play.} 30. Qb6 {[%emt 0:01:15] And now Rd8 would win.} Rcc8 {[%emt 0:04:08] Inhibits Rd8.} (30... Rxc2 $2 31. Rd8 $18) 31. Qd6 $2 {[%emt 0:00:50]} (31. R1d5 $11) 31... Bxf3 $19 {[%emt 0:00:51]} (31... Rxc2 32. g4 Bg6 33. Nxe5 $11) 32. gxf3 {[%emt 0:00:06]} Rxc2 {[%emt 0:00:22]} 33. Re7 $2 {[%emt 0:00:48]} (33. Kg2) 33... Qxa4 {[%emt 0:01:23]} 34. Rxf7 {[%emt 0:00:08]} Kxf7 {[%emt 0:08:27]} 35. Qd5+ {[%emt 0:00:04]} Kg6 {[%emt 0:00:06]} 36. Qxa8 {[%emt 0:00:18][%mdl 4096] Endgame White wants to mate with Qf8. KQR-KQR} Kh7 {[%emt 0:01:02][%cal Oc2f2] Threatens to win with ...Rxf2!} 37. Rd8 {[%emt 0:01:17]} (37. Qf8 $142 Rc6 38. Rd8) 37... Qc6 {[%emt 0:00:19] Hoping for ...Qxa8.} ({Weaker is} 37... Qa1+ 38. Kg2 Qa4 39. Rh8+ (39. Qd5 $2 Qa2 $19) 39... Kg6 40. Qd8 $11) 38. Rh8+ {[%emt 0:00:15]} Kg6 {[%emt 0:00:04]} 39. Qg8 {[%emt 0:00:52]} Kh5 {[%emt 0:01:33] Active counter play!} (39... Qb6 {leads to mate.} 40. Qe8+ Kg5 41. Qxe5+ Kh4 42. Qf4+ Kxh3 43. Qh2#) 40. Qf8 {[%emt 0:00:00] Black must now prevent Qf5+.} Rc1+ {[%emt 0:00:00]} (40... Qg6+ $142 41. Kf1 b3 42. Qf5+ Qxf5 43. exf5 b2 44. Rb8 Rc1+ 45. Ke2 b1=Q 46. Rxb1 Rxb1 47. f6 gxf6 48. Kd2 a4 49. Kc2 Rb8 50. Kd2 a3 51. Kd3 a2 52. f4 a1=Q 53. fxe5 fxe5 54. Ke4 Qd4+ 55. Kf3 Rb2 56. Kg2 Qxf2+ 57. Kh1 Qh2#) 41. Kh2 {[%emt 0:00:49]} Qg6 {[%emt 0:02:26] Weighted Error Value: White=0.69/Black=0.42} 0-1

[Event "Hungarian Championship Men 2022"]
[Site "Budapest"]
[Date "2022.12.13"]
[Round "9.5"]
[White "Nagy, Gabor"]
[Black "Berkes, Ferenc"]
[Result "1/2-1/2"]
[ECO "D30"]
[WhiteElo "2482"]
[BlackElo "2643"]
[Annotator "TA"]
[PlyCount "45"]
[EventDate "2022.12.03"]
[EventType "tourn"]
[EventCountry "HUN"]
[SourceTitle "playchess.com"]
[Source "ChessBase"]
[SourceQuality "1"]
[TimeControl "40/5400+30:1800+30"]

{[%evp 9,45,28,29,10,17,24,13,0,0,14,8,0,6,11,20,0,3,4,8,11,18,0,0,0,0,0,0,0,0,0,0,0,0,0,0,0,0,0]} 1. d4 {[%emt 0:00:35]} d5 {[%emt 0:00:49]} 2. c4 {[%emt 0:00:17]} e6 {[%emt 0:00:07]} 3. Nf3 {[%emt 0:00:31]} a6 {[%emt 0:00:17]} 4. Bg5 {[%emt 0:01:57]} Be7 {[%emt 0:00:12]} 5. Bxe7 {[%emt 0:00:13]} Qxe7 {[%emt 0:00:17]} 6. Nbd2 {[%emt 0:00:46] D30: Queen's Gambit Declined: Systems without Nc3.} Nf6 {[%emt 0:00:10]} 7. Qc2 {[%emt 0:01:04]} O-O {[%emt 0:00:12]} 8. g3 {[%emt 0:04:54] The position is equal.} c5 {[%emt 0:09:51]} 9. cxd5 {[%emt 0:05:34]} cxd4 $1 {[%emt 0:12:07] [#]} 10. Nxd4 $146 {[%emt 0:01:35]} ({Predecessor:} 10. dxe6 Bxe6 11. Bg2 Nc6 12. O-O Rac8 13. a3 Rfd8 14. Qa4 Bd5 15. Rfe1 Ne4 16. Nxe4 Bxe4 {½-½ (46) Drygalov,S (2483)-Shapiro,D (2392) Chess.com INT 2020}) 10... Nxd5 {[%emt 0:00:09]} 11. Bg2 {[%emt 0:00:13]} Bd7 {[%emt 0:00:20]} 12. O-O {[%emt 0:01:53]} Nc6 {[%emt 0:00:12]} 13. Nxc6 {[%emt 0:00:37]} Bxc6 {[%emt 0:00:05]} 14. Nb3 {[%emt 0:01:49]} Rfd8 {[%emt 0:02:18]} 15. Nd4 {[%emt 0:02:37]} Be8 {[%emt 0:00:58]} 16. Rfd1 {[%emt 0:00:55]} Rac8 {[%emt 0:00:22]} 17. Qb3 {[%emt 0:00:19]} h6 {[%emt 0:04:46]} 18. Rac1 {[%emt 0:02:20]} Rxc1 {[%emt 0:03:10]} 19. Rxc1 {[%emt 0:00:15]} Nf6 {[%emt 0:00:10]} 20. Qc3 {[%emt 0:00:58]} Nd5 {[%emt 0:00:18]} 21. Qb3 {[%emt 0:00:14]} Nf6 {[%emt 0:00:22]} 22. Qc3 {[%emt 0:00:10]} Nd5 {[%emt 0:00:14]} 23. Qb3 {[%emt 0:00:07] A rather calm draw.   Weighted Error Value: White=0.05 (flawless) /Black=0.01 (flawless)} 1/2-1/2